bitfinex/quotes_BTCUSD_20250718
["timestamp","ask_amount","ask_price","bid_price","bid_amount"]
[1752854234027,0.27069943,117970.0,117960.0,0.24588096]
[1752854234233,0.4487107,117970.0,117960.0,0.0509]
[1752854234444,0.48510513,117970.0,117960.0,0.22892629]
[1752854234644,0.48510513,117970.0,117960.0,0.23740338]
[1752854234848,0.48510513,117970.0,117960.0,0.22892629]
[1752854235061,0.42328203,117970.0,117960.0,0.24588053]
[1752854235323,0.25374741,117970.0,117960.0,0.25435747]
[1752854235471,0.26222356,117970.0,117960.0,0.25435747]
[1752854236841,0.25374698,117970.0,117960.0,0.25435747]
[1752854237075,0.25374691,117970.0,117960.0,0.25435747]
[1752854237534,0.10759054,117970.0,117960.0,0.25435747]
[1752854237809,0.24519054,117970.0,117960.0,0.25435747]
[1752854238519,0.24519047,117970.0,117960.0,0.25435747]
[1752854238748,0.25366677,117970.0,117960.0,0.25435747]
[1752854239476,0.43167848,117970.0,117960.0,0.22044899]
[1752854239720,0.43167848,117970.0,117960.0,0.23740345]
[1752854239993,0.25678713,117970.0,117960.0,0.2543574]
[1752854240232,0.26214371,117970.0,117960.0,0.2543574]
[1752854241341,0.26526314,117970.0,117960.0,0.24588039]
[1752854241510,0.27373972,117970.0,117960.0,0.24588039]
[1752854242498,0.27061972,117970.0,117960.0,0.24588039]
[1752854242906,0.2451904,117970.0,117960.0,0.717547]
[1752854243105,0.26214306,117970.0,117960.0,0.73557867]
[1752854243310,0.27061957,117970.0,117960.0,0.717547]
[1752854243512,0.27909672,117970.0,117960.0,0.717547]
[1752854243729,0.27909672,117970.0,117960.0,0.24588039]
[1752854243952,0.25366698,117970.0,117960.0,0.24588039]
[1752854244149,0.26214356,117970.0,117960.0,0.24588039]
[1752854244347,0.25366698,117970.0,117960.0,0.24588039]
[1752854245452,0.26214356,117970.0,117960.0,0.24588039]
[1752854245855,0.26214349,117970.0,117960.0,0.24588039]
[1752854246256,0.3265427,117970.0,117960.0,0.24588039]
[1752854246458,0.28221672,117970.0,117960.0,0.24588039]
[1752854246935,0.45175134,117970.0,117960.0,0.24588039]
[1752854247150,0.45175185,117970.0,117960.0,0.24588039]
[1752854247352,0.2737405,117970.0,117960.0,0.24588039]
[1752854247564,0.25678727,117970.0,117960.0,0.24588039]
[1752854247976,0.25366698,117970.0,117960.0,0.24588039]
[1752854248385,0.25366691,117970.0,117960.0,0.24588039]
[1752854249076,0.25366691,117970.0,117960.0,0.717547]
[1752854249369,0.24519054,117970.0,117960.0,0.717547]
[1752854249581,0.25366698,117970.0,117960.0,0.717547]
[1752854250024,0.43479818,117970.0,117960.0,0.22892629]
[1752854250228,0.49814762,117970.0,117960.0,0.23740352]
[1752854250435,0.49814762,117970.0,117960.0,0.24588068]
[1752854250902,0.4896714,117970.0,117960.0,0.22892629]
[1752854251100,0.4896714,117970.0,117960.0,0.23740345]
[1752854251564,0.4896714,117970.0,117960.0,0.22892629]
[1752854251824,0.49682922,117970.0,117960.0,0.002]
[1752854252021,1.02029583,117970.0,117960.0,0.002]
[1752854252461,0.18651919,117950.0,117940.0,0.05064969]
[1752854252687,0.32609919,117950.0,117940.0,0.05064969]
[1752854253102,0.32933919,117950.0,117940.0,0.05064969]
[1752854253740,0.46473958,117950.0,117940.0,0.00014969]
[1752854254739,0.49083958,117950.0,117940.0,0.00014969]
[1752854255216,0.46473958,117950.0,117940.0,0.00114969]
[1752854255429,0.46473958,117950.0,117940.0,0.00314969]
[1752854256274,0.49133065,117950.0,117940.0,0.00314969]
[1752854256619,0.49133065,117950.0,117940.0,0.00114969]
[1752854257040,0.49133065,117950.0,117940.0,0.00214969]
[1752854257652,0.35385065,117950.0,117940.0,0.00214969]
[1752854257855,0.49129065,117950.0,117940.0,0.00114969]
[1752854258118,0.44140054,117950.0,117940.0,0.00114969]
[1752854260607,0.44136054,117950.0,117940.0,0.00114969]
[1752854261356,0.30396054,117950.0,117940.0,0.00114969]
[1752854261553,0.44136054,117950.0,117940.0,0.00114969]
[1752854264793,0.30396054,117950.0,117940.0,0.00114969]
[1752854265412,0.44132054,117950.0,117940.0,0.00114969]
[1752854266057,0.97612309,117950.0,117940.0,0.00114969]
[1752854266893,1.00159109,117950.0,117940.0,0.00114969]
[1752854269966,0.95019109,117950.0,117940.0,0.00114969]
[1752854270167,1.00009109,117950.0,117940.0,0.00114969]
[1752854271657,6.00009109,117950.0,117940.0,0.00114969]
[1752854272274,6.70009109,117950.0,117940.0,0.00114969]
[1752854272733,6.70009109,117950.0,117940.0,0.00014969]
[1752854272922,6.70109109,117950.0,117940.0,0.00014969]
[1752854273253,6.71663194,117950.0,117940.0,0.00014969]
[1752854273393,7.25663193,117950.0,117940.0,0.00014969]
[1752854275940,7.55663193,117950.0,117940.0,0.00014969]
[1752854276122,7.60663193,117950.0,117940.0,0.00014969]
[1752854276527,7.6324984,117950.0,117940.0,0.00014969]
[1752854277298,7.58004086,117950.0,117940.0,0.00014969]
[1752854278136,7.58004086,117950.0,117910.0,0.19995764]
[1752854278137,0.6699692,117920.0,117910.0,0.19995764]
[1752854278378,0.41145693,117920.0,117910.0,0.20000743]
[1752854278853,0.41469693,117920.0,117910.0,0.20000743]
[1752854279243,0.41469693,117920.0,117910.0,0.20100743]
[1752854279448,0.27741693,117920.0,117910.0,0.20100743]
[1752854279654,0.41469693,117920.0,117910.0,0.25360743]
[1752854279871,0.4921285,117920.0,117910.0,0.25360743]
[1752854280497,0.27741693,117920.0,117910.0,0.73700998]
[1752854280709,0.24819009,117920.0,117910.0,1.00766516]
[1752854280921,0.11095009,117920.0,117910.0,1.00866516]
[1752854281139,0.10246985,117920.0,117910.0,1.00866516]
[1752854281350,0.00847924,117930.0,117920.0,0.23706665]
[1752854281561,0.23970869,117930.0,117920.0,0.72894902]
[1752854281765,0.24818815,117930.0,117920.0,0.72894902]
[1752854281972,0.25666768,117930.0,117920.0,0.72894902]
[1752854282178,0.26514728,117930.0,117920.0,0.72894902]
[1752854282437,0.46973522,117930.0,117920.0,0.7204692]
[1752854282649,0.32401591,117930.0,117920.0,0.71298931]
[1752854282856,0.32401591,117930.0,117920.0,0.71598931]
[1752854283090,0.45277645,117930.0,117920.0,0.71598931]
[1752854283288,0.45277645,117930.0,117920.0,0.73294945]
[1752854283503,0.45277645,117930.0,117920.0,0.73294959]
[1752854283960,0.45277645,117930.0,117920.0,0.74042962]
[1752854284175,0.45277645,117930.0,117920.0,0.74142962]
[1752854284592,0.27206154,117930.0,117920.0,0.74990951]
[1752854284758,0.40926154,117930.0,117920.0,0.74990951]
[1752854284922,0.23118959,117930.0,117920.0,0.74990951]
[1752854285141,0.17277255,117940.0,117930.0,0.23470932]
[1752854285142,0.02543507,117940.0,117930.0,0.23470932]
[1752854285412,0.24814535,117940.0,117930.0,0.71811187]
[1752854285619,0.25662395,117940.0,117930.0,0.71811187]
[1752854285970,0.26510269,117940.0,117930.0,0.71811187]
[1752854286389,0.23966683,117940.0,117930.0,0.71811187]
[1752854286589,0.25662381,117940.0,117930.0,0.71811187]
[1752854286789,0.24814521,117940.0,117930.0,0.71811187]
[1752854287100,0.25662373,117940.0,117930.0,0.71811187]
[1752854287299,0.24814521,117940.0,117930.0,0.71811187]
[1752854287528,0.25662373,117940.0,117930.0,0.71811187]
[1752854288181,0.25658373,117940.0,117930.0,0.71811187]
[1752854288583,0.24810521,117940.0,117930.0,0.71811187]
[1752854288825,0.23962697,117940.0,117930.0,0.71911187]
[1752854289012,0.13716,117940.0,117930.0,0.72111187]
[1752854289218,0.14563838,117940.0,117930.0,0.72111187]
[1752854289578,0.02543334,117950.0,117940.0,0.21773501]
[1752854289786,0.42614508,117950.0,117940.0,0.70113771]
[1752854289991,0.42614508,117950.0,117940.0,0.71809469]
[1752854289992,0.23962567,117950.0,117940.0,0.71809469]
[1752854290414,0.11094369,117950.0,117940.0,0.71809469]
[1752854290626,0.24806369,117950.0,117940.0,0.71809469]
[1752854291279,0.25654178,117950.0,117940.0,0.71809469]
[1752854291449,0.24806369,117950.0,117940.0,0.71809469]
[1752854291862,0.41762763,117950.0,117940.0,0.0312]
[1752854292038,0.47307452,117950.0,117940.0,0.0322]
[1752854292244,0.47624452,117950.0,117940.0,0.21025649]
[1752854292481,0.4677665,117950.0,117940.0,0.0322]
[1752854292704,0.40384181,117950.0,117940.0,0.21025663]
[1752854292918,0.40384181,117950.0,117940.0,0.21873544]
[1752854293088,0.40384181,117950.0,117940.0,0.23569278]
[1752854293288,0.40914976,117950.0,117940.0,0.24417087]
[1752854293525,0.40914976,117950.0,117940.0,0.72757342]
[1752854294651,0.41014976,117950.0,117940.0,0.71061645]
[1752854294860,0.41014976,117950.0,117940.0,0.71909512]
[1752854294992,0.41014976,117950.0,117940.0,0.72757364]
[1752854295218,0.24058596,117950.0,117940.0,0.72757364]
[1752854295420,0.24058553,117950.0,117940.0,0.72757321]
[1752854295861,0.2321078,117950.0,117940.0,0.72757321]
[1752854296048,0.2405856,117950.0,117940.0,0.72757321]
[1752854296421,0.25754114,117950.0,117940.0,0.72757321]
[1752854296625,0.4355826,117950.0,117940.0,0.71909483]
[1752854296809,0.42710508,117950.0,117940.0,0.71909483]
[1752854297274,0.24906362,117950.0,117940.0,0.72757328]
[1752854297417,0.26601973,117950.0,117940.0,0.72757292]
[1752854297621,0.43558367,117950.0,117940.0,0.72757292]
[1752854297860,0.41862792,117950.0,117940.0,0.21873544]
[1752854298094,0.41862792,117950.0,117940.0,0.71061673]
[1752854298491,0.14659802,117950.0,117940.0,0.72757371]
[1752854298695,0.16355391,117950.0,117940.0,0.72757371]
[1752854298908,0.15507539,117950.0,117940.0,0.72757371]
[1752854299309,0.14659759,117950.0,117940.0,0.72757371]
[1752854299535,0.15507532,117950.0,117940.0,0.72757371]
[1752854299970,0.34159459,117950.0,117940.0,0.23569278]
[1752854300124,0.17203122,117950.0,117940.0,0.72757335]
[1752854300319,0.001,117950.0,117940.0,0.72757335]
[1752854300794,0.00947752,117950.0,117940.0,0.72757335]
[1752854300952,0.00947752,117950.0,117940.0,0.86457335]
[1752854301622,0.01795518,117950.0,117940.0,0.86457335]
[1752854301882,0.01795518,117950.0,117940.0,0.72757335]
[1752854302087,0.1991675,117950.0,117940.0,0.69365911]
[1752854302294,0.05611915,117950.0,117940.0,0.71061609]
[1752854302464,0.02112554,117950.0,117940.0,0.71061609]
[1752854302680,0.02643356,117950.0,117940.0,0.71061609]
[1752854302890,0.19599693,117950.0,117940.0,0.70213771]
[1752854303092,0.20447502,117950.0,117940.0,0.71061616]
[1752854303303,0.21295318,117950.0,117940.0,0.71061616]
[1752854303614,0.0179559,117950.0,117940.0,0.71061609]
[1752854304057,0.01795554,117950.0,117940.0,0.71061609]
[1752854304256,0.01795546,117950.0,117940.0,0.22721354]
[1752854304436,0.01795539,117950.0,117940.0,0.71061609]
[1752854304656,0.02643319,117950.0,117940.0,0.71061609]
[1752854304778,0.03491114,117950.0,117940.0,0.71061609]
[1752854305211,0.02643319,117950.0,117940.0,0.71061609]
[1752854305375,0.03491114,117950.0,117940.0,0.71061609]
[1752854305582,0.04338916,117950.0,117940.0,0.71061609]
[1752854305988,0.21295339,117950.0,117940.0,0.71061609]
[1752854306416,0.00947759,117950.0,117940.0,0.71061609]
[1752854306826,0.01795532,117950.0,117940.0,0.71061609]
[1752854307633,0.0264332,117950.0,117940.0,0.71061609]
[1752854307844,0.03491115,117950.0,117940.0,0.71061609]
[1752854308273,0.03491115,117950.0,117940.0,0.79637571]
[1752854308274,0.001,117950.0,117940.0,0.79637571]
[1752854309032,0.001,117950.0,117940.0,0.71061609]
[1752854309433,0.00947752,117950.0,117940.0,0.71261609]
[1752854309634,0.00947752,117950.0,117940.0,0.71161609]
[1752854309835,0.00947759,117950.0,117940.0,0.71161609]
[1752854310134,0.00947759,117950.0,117940.0,0.71461609]
[1752854310341,0.001,117950.0,117940.0,0.23121354]
[1752854310509,0.00947759,117950.0,117940.0,0.71461609]
[1752854310841,0.001,117950.0,117940.0,0.71461609]
[1752854311611,0.00947752,117950.0,117940.0,0.71461609]
[1752854311931,0.001,117950.0,117940.0,0.71461609]
[1752854312454,0.0349082,117960.0,117950.0,0.227297]
[1752854312659,0.0349082,117960.0,117950.0,0.84761955]
[1752854313835,0.01795388,117960.0,117950.0,0.84866934]
[1752854314065,0.01795388,117960.0,117950.0,0.87955799]
[1752854314066,0.001,117960.0,117950.0,0.87955799]
[1752854314267,0.00947694,117960.0,117950.0,0.36526679]
[1752854314469,0.01795381,117960.0,117950.0,0.84866934]
[1752854314648,0.01795374,117960.0,117950.0,0.84966934]
[1752854315281,0.02643083,117960.0,117950.0,0.84966934]
[1752854315483,0.0094768,117960.0,117950.0,0.84966934]
[1752854315708,0.001,117960.0,117950.0,0.93542896]
[1752854317597,0.09911432,117970.0,117960.0,0.22608046]
[1752854317803,0.09911432,117970.0,117960.0,1.19288556]
[1752854318632,0.1075904,117970.0,117960.0,1.19288556]
[1752854318836,0.09911432,117970.0,117960.0,0.70948301]
[1752854319373,0.09911432,117970.0,117960.0,0.84628301]
[1752854320237,0.1075904,117970.0,117960.0,0.84628301]
[1752854321909,0.09911432,117970.0,117960.0,0.84628301]
[1752854322121,0.09911432,117970.0,117960.0,1.40370272]
[1752854323427,0.09911432,117970.0,117960.0,1.40470272]
[1752854324165,0.09911432,117970.0,117960.0,1.33168556]
[1752854324877,0.09911432,117970.0,117960.0,1.41719584]
[1752854325464,0.09911432,117970.0,117960.0,1.75719584]
[1752854325675,0.09911432,117970.0,117960.0,0.65359074]
[1752854325882,0.09911432,117970.0,117960.0,1.75715584]
[1752854326077,0.09911432,117970.0,117960.0,1.83290469]
[1752854326286,0.09911432,117970.0,117960.0,1.83190469]
[1752854326513,0.09911432,117970.0,117960.0,1.83590469]
[1752854327154,0.09911432,117970.0,117960.0,1.83586469]
[1752854327364,0.09911432,117970.0,117960.0,1.83486469]
[1752854327545,0.10011432,117970.0,117960.0,1.82938775]
[1752854327808,0.10011432,117970.0,117960.0,1.83786469]
[1752854328639,0.10011432,117970.0,117960.0,0.87105959]
[1752854328791,0.10011432,117970.0,117960.0,1.83786469]
[1752854330448,0.10011432,117970.0,117960.0,1.70114469]
[1752854330795,0.10011432,117970.0,117960.0,1.76207584]
[1752854332385,0.10011432,117970.0,117960.0,1.67652556]
[1752854332672,0.12222698,117970.0,117960.0,1.05648315]
[1752854332835,0.30023818,117970.0,117960.0,0.69952891]
[1752854333048,0.36257366,117970.0,117960.0,0.70800614]
[1752854333248,0.35409722,117970.0,117960.0,0.52150255]
[1752854333446,0.34562064,117970.0,117960.0,0.68412884]
[1752854333653,0.17608602,117970.0,117960.0,0.70108294]
[1752854333979,0.11375047,117970.0,117960.0,0.71788294]
[1752854334416,0.25039047,117970.0,117960.0,0.71788294]
[1752854334618,0.25886669,117970.0,117960.0,0.23448039]
[1752854334823,0.26734306,117970.0,117960.0,0.71788294]
[1752854335115,0.13070306,117970.0,117960.0,0.71788294]
[1752854335321,0.27581957,117970.0,117960.0,0.71788294]
[1752854335769,0.26734306,117970.0,117960.0,0.23448039]
[1752854335978,0.26734306,117970.0,117960.0,0.71788294]
[1752854335979,0.26834306,117970.0,117960.0,0.71788294]
[1752854336182,0.27681957,117970.0,117960.0,0.71788294]
[1752854336382,0.10627432,117970.0,117960.0,0.71788294]
[1752854336686,0.2461904,117970.0,117960.0,0.71788294]
[1752854337104,0.25466662,117970.0,117960.0,0.71788294]
[1752854337309,0.25770662,117970.0,117960.0,0.71788294]
[1752854337810,0.2492304,117970.0,117960.0,0.71788294]
[1752854338039,0.25770662,117970.0,117960.0,0.71788294]
[1752854339106,0.10415432,117970.0,117960.0,0.71788294]
[1752854339346,0.23771432,117970.0,117960.0,1.20128549]
[1752854339543,0.10111432,117970.0,117960.0,1.20128549]
[1752854339945,0.10111432,117970.0,117960.0,1.33784549]
[1752854342063,0.10011432,117970.0,117960.0,1.67784549]
[1752854345941,0.10011432,117970.0,117960.0,1.19444294]
[1752854346141,0.10011432,117970.0,117960.0,0.71104039]
[1752854346346,0.10011432,117970.0,117960.0,1.67784549]
[1752854347040,0.10325432,117970.0,117960.0,1.67780549]
[1752854347434,0.10325432,117970.0,117960.0,1.54128549]
[1752854347591,0.10325432,117970.0,117960.0,1.67776549]
[1752854348205,0.10011432,117970.0,117960.0,1.67776549]
[1752854349826,0.30373241,117970.0,117960.0,0.52290255]
[1752854350041,0.41004269,117970.0,117960.0,0.007]
[1752854350258,0.89344524,117970.0,117960.0,0.007]
[1752854350908,0.40904269,117970.0,117960.0,0.004]
[1752854351932,0.17802643,117960.0,117950.0,0.66149362]
[1752854352127,0.40512671,117960.0,117950.0,0.6530156]
[1752854352340,0.47578633,117960.0,117950.0,0.16961316]
[1752854352644,0.42592671,117960.0,117950.0,0.18656927]
[1752854352867,0.43624391,117960.0,117950.0,0.18656941]
[1752854353068,0.41656647,117960.0,117950.0,0.18656941]
[1752854353280,0.39664927,117960.0,117950.0,0.19604743]
[1752854353431,0.39664927,117960.0,117950.0,0.21300326]
[1752854353646,0.25353204,117960.0,117950.0,0.69640531]
[1752854353846,0.26200948,117960.0,117950.0,0.69640531]
[1752854354050,0.43155847,117960.0,117950.0,0.68792765]
[1752854354796,0.48790687,117960.0,117950.0,0.00104979]
[1752854355000,0.4794295,117960.0,117950.0,0.00104979]
[1752854355212,0.4794295,117960.0,117950.0,0.17161316]
[1752854355415,0.4794295,117960.0,117950.0,0.18009132]
[1752854355620,0.4794295,117960.0,117950.0,0.18856941]
[1752854355828,0.4794295,117960.0,117950.0,0.6634938]
[1752854356255,0.4794295,117960.0,117950.0,0.67197182]
[1752854356461,0.5002295,117960.0,117950.0,0.00204979]
[1752854356850,0.98363205,117960.0,117950.0,0.00204979]
[1752854356989,0.98263205,117960.0,117950.0,0.00204979]
[1752854357401,0.4992295,117960.0,117950.0,0.00204979]
[1752854357894,0.4991495,117960.0,117950.0,0.00204979]
[1752854358160,0.4991495,117960.0,117950.0,0.00104979]
[1752854358370,0.5246145,117960.0,117950.0,0.00104979]
[1752854358586,0.3882145,117960.0,117950.0,4.979e-05]
[1752854358784,0.45131171,117960.0,117950.0,4.979e-05]
[1752854359185,0.31491171,117960.0,117950.0,4.979e-05]
[1752854359433,0.45131171,117960.0,117950.0,4.979e-05]
[1752854360414,0.31491171,117960.0,117950.0,4.979e-05]
[1752854360630,0.40504671,117960.0,117950.0,0.48345234]
[1752854360812,0.40504671,117960.0,117950.0,4.979e-05]
[1752854361616,0.02206403,117960.0,117950.0,0.71004934]
[1752854361816,0.16497076,117960.0,117950.0,0.79580896]
[1752854362066,0.17344806,117960.0,117950.0,0.71004934]
[1752854362295,0.17541806,117960.0,117950.0,0.71004934]
[1752854362660,0.17541806,117960.0,117950.0,0.6930938]
[1752854362661,0.33649075,117960.0,117950.0,0.6930938]
[1752854362860,0.33649075,117960.0,117950.0,0.7100497]
[1752854363034,0.33649075,117960.0,117950.0,0.7195275]
[1752854363241,0.34496819,117960.0,117950.0,0.72900523]
[1752854363481,0.16694176,117960.0,117950.0,0.7290048]
[1752854364142,0.16694119,117960.0,117950.0,0.7290048]
[1752854364401,0.14998687,117960.0,117950.0,0.81476442]
[1752854364614,0.16694104,117960.0,117950.0,0.81476442]
[1752854364827,0.33649053,117960.0,117950.0,0.70357161]
[1752854365041,0.31953636,117960.0,117950.0,0.00204979]
[1752854365246,0.40500664,117960.0,117950.0,0.00204979]
[1752854365702,0.26864664,117960.0,117950.0,0.00204979]
[1752854365906,0.40500664,117960.0,117950.0,4.979e-05]
[1752854366118,0.26864664,117960.0,117950.0,4.979e-05]
[1752854366320,0.40500664,117960.0,117950.0,4.979e-05]
[1752854366524,0.42580664,117960.0,117950.0,4.979e-05]
[1752854367143,0.40500664,117960.0,117950.0,4.979e-05]
[1752854367346,0.26864664,117960.0,117950.0,4.979e-05]
[1752854367553,0.40500664,117960.0,117950.0,0.5072305]
[1752854367767,0.40500664,117960.0,117950.0,0.02382795]
[1752854367966,0.40500664,117960.0,117950.0,0.20186941]
[1752854368170,0.40500664,117960.0,117950.0,0.22644743]
[1752854368381,0.40500664,117960.0,117950.0,0.20949132]
[1752854368583,0.39652927,117960.0,117950.0,0.03992795]
[1752854368794,0.39652927,117960.0,117950.0,0.20949132]
[1752854368916,0.39652927,117960.0,117950.0,0.03144979]
[1752854370356,0.39652927,117960.0,117950.0,0.03992795]
[1752854370986,0.39652927,117960.0,117950.0,0.21796941]
[1752854371396,0.40500664,117960.0,117950.0,0.22644729]
[1752854372242,0.11930705,117970.0,117960.0,0.22578046]
[1752854372438,0.12778363,117970.0,117960.0,0.70918301]
[1752854372644,0.26186335,117970.0,117960.0,0.70918301]
[1752854372851,0.24491054,117970.0,117960.0,0.70918301]
[1752854373084,0.24815054,117970.0,117960.0,0.70918301]
[1752854373419,0.11183054,117970.0,117960.0,0.70918301]
[1752854373627,0.12878349,117970.0,117960.0,0.22578046]
[1752854373831,0.24491047,117970.0,117960.0,0.70918301]
[1752854374030,0.15427252,117970.0,117960.0,0.70918301]
[1752854374241,0.001,117970.0,117960.0,1.19258556]
[1752854374437,0.001,117970.0,117960.0,1.53258556]
[1752854374635,0.13732,117970.0,117960.0,1.53458556]
[1752854374833,0.001,117970.0,117960.0,1.62034518]
[1752854375036,0.001,117970.0,117960.0,1.61934518]
[1752854375357,0.001,117970.0,117960.0,1.62034518]
[1752854375710,0.001,117970.0,117960.0,1.53658556]
[1752854375915,0.001,117970.0,117960.0,1.62009584]
[1752854376360,0.001,117970.0,117960.0,1.62309584]
[1752854376559,0.001,117970.0,117960.0,1.64108584]
[1752854377032,0.002,117970.0,117960.0,1.64408584]
[1752854377203,0.002,117970.0,117960.0,0.67728074]
[1752854377423,0.002,117970.0,117960.0,1.64408584]
[1752854377622,0.002,117970.0,117960.0,0.67728074]
[1752854377800,0.002,117970.0,117960.0,1.64408584]
[1752854378004,0.002,117970.0,117960.0,1.72984546]
[1752854379989,0.001,117970.0,117960.0,0.76304036]
[1752854380201,0.001,117970.0,117960.0,1.74438631]
[1752854381277,0.001,117970.0,117960.0,0.69182159]
[1752854381484,0.001,117970.0,117960.0,1.65862669]
[1752854383561,0.001,117970.0,117960.0,0.69182159]
[1752854383750,0.001,117970.0,117960.0,1.65862669]
[1752854386803,0.001,117970.0,117960.0,1.16068329]
[1752854387005,0.00624,117970.0,117960.0,1.07517301]
[1752854387437,0.01471622,117970.0,117960.0,1.07517301]
[1752854387646,0.01471615,117970.0,117960.0,1.07517301]
[1752854387848,0.00624,117970.0,117960.0,1.07517301]
[1752854388052,0.00624,117970.0,117960.0,0.59177046]
[1752854388273,0.01471615,117970.0,117960.0,1.04670607]
[1752854388523,0.20968016,117970.0,117960.0,0.23178061]
[1752854388752,0.20968016,117970.0,117960.0,1.04670607]
[1752854388919,0.20120351,117970.0,117960.0,1.05518316]
[1752854389156,0.20968009,117970.0,117960.0,1.04670614]
[1752854389337,0.00624,117970.0,117960.0,1.09650551]
[1752854389481,0.14248,117970.0,117960.0,1.09650551]
[1752854389689,0.14248,117970.0,117960.0,1.06366024]
[1752854391539,0.15095608,117970.0,117960.0,1.06366024]
[1752854391753,0.15943238,117970.0,117960.0,0.58025769]
[1752854391969,0.15943238,117970.0,117960.0,1.06366024]
[1752854392327,0.328967,117970.0,117960.0,1.06366024]
[1752854392551,0.328967,117970.0,117960.0,0.346]
[1752854392713,0.38780076,117970.0,117960.0,1.00742898]
[1752854392915,0.328967,117970.0,117960.0,1.02438337]
[1752854393119,0.34591995,117970.0,117960.0,1.04936046]
[1752854393299,0.34591995,117970.0,117960.0,1.03240621]
[1752854393500,0.34591995,117970.0,117960.0,0.54900373]
[1752854393698,0.34591995,117970.0,117960.0,1.04088344]
[1752854393907,0.15095608,117970.0,117960.0,1.06596038]
[1752854394108,0.1679086,117970.0,117960.0,1.06596038]
[1752854394309,0.16790853,117970.0,117960.0,1.06596038]
[1752854394907,0.16790853,117970.0,117960.0,1.05748344]
[1752854395093,0.16790853,117970.0,117960.0,1.07443747]
[1752854395297,0.17638497,117970.0,117960.0,1.07443747]
[1752854395903,0.17638497,117970.0,117960.0,1.07303747]
[1752854396138,0.35439675,117970.0,117960.0,1.06456053]
[1752854396367,0.16790889,117970.0,117960.0,1.07303704]
[1752854396565,0.16790889,117970.0,117960.0,0.53110345]
[1752854396566,0.35439653,117970.0,117960.0,0.53110345]
[1752854396774,0.34592038,117970.0,117960.0,0.17414899]
[1752854396985,0.33744408,117970.0,117960.0,0.18262629]
[1752854397405,0.33744408,117970.0,117960.0,0.19110352]
[1752854397650,0.3994843,117970.0,117960.0,0.0046]
[1752854397899,0.34976771,117970.0,117960.0,0.0046]
[1752854398117,0.91868054,117970.0,117960.0,0.0046]
[1752854398540,0.43527799,117970.0,117960.0,0.0046]
[1752854398956,0.45542099,117970.0,117960.0,0.0046]
[1752854399706,0.17802629,117960.0,117950.0,0.16960952]
[1752854399926,0.2772538,117960.0,117950.0,0.18656542]
[1752854400156,0.28573081,117960.0,117950.0,0.19504322]
[1752854401054,0.09275028,117960.0,117950.0,0.68144577]
[1752854401257,0.09275028,117960.0,117950.0,0.68244577]
[1752854401549,0.09275028,117960.0,117950.0,0.67396797]
[1752854401881,0.09275028,117960.0,117950.0,0.68966797]
[1752854402480,0.09275028,117960.0,117950.0,0.20626542]
[1752854402685,0.09275028,117960.0,117950.0,0.68966797]
[1752854403366,0.09275028,117960.0,117950.0,0.20626542]
[1752854403606,0.26229927,117960.0,117950.0,0.68966797]
[1752854403779,0.27077671,117960.0,117950.0,0.71364577]
[1752854404002,0.10970474,117960.0,117950.0,0.72212343]
[1752854404204,0.11818211,117960.0,117950.0,0.7221235]
[1752854404508,0.24598474,117960.0,117950.0,0.73060116]
[1752854404644,0.41553373,117960.0,117950.0,0.71364577]
[1752854404845,0.42401117,117960.0,117950.0,0.67396797]
[1752854405047,0.31381676,117960.0,117950.0,0.69092336]
[1752854405339,0.1604741,117960.0,117950.0,0.69092336]
[1752854405557,0.1604741,117960.0,117950.0,0.24102081]
[1752854405769,0.16895133,117960.0,117950.0,0.72442336]
[1752854406147,0.34697769,117960.0,117950.0,0.6824457]
[1752854406376,0.34697769,117960.0,117950.0,0.6983457]
[1752854406593,0.34697769,117960.0,117950.0,0.68986797]
[1752854406739,0.34697769,117960.0,117950.0,0.69834577]
[1752854406903,0.34697769,117960.0,117950.0,0.21494322]
[1752854407113,0.1774287,117960.0,117950.0,0.71530116]
[1752854407333,0.1774287,117960.0,117950.0,0.73190116]
[1752854407334,0.16047403,117960.0,117950.0,0.73190116]
[1752854407536,0.1774287,117960.0,117950.0,0.24849861]
[1752854407766,0.16895133,117960.0,117950.0,0.73190116]
[1752854407963,0.15199694,117960.0,117950.0,0.73190116]
[1752854408176,0.16047403,117960.0,117950.0,0.24849861]
[1752854408392,0.16047403,117960.0,117950.0,0.73190116]
[1752854408625,0.002,117960.0,117950.0,0.77248838]
[1752854408807,0.13828,117960.0,117950.0,1.07190116]
[1752854409010,0.001,117960.0,117950.0,1.07190116]
[1752854409650,0.001,117960.0,117950.0,1.64081399]
[1752854410800,0.26766692,117980.0,117970.0,0.22666393]
[1752854411000,0.25819141,117980.0,117970.0,0.71006648]
[1752854411256,0.28024264,117980.0,117970.0,0.71006648]
[1752854411475,0.28024264,117980.0,117970.0,0.22666422]
[1752854411476,0.2887185,117980.0,117970.0,0.22666422]
[1752854411683,0.49568634,117980.0,117970.0,0.19451127]
[1752854411887,0.48721062,117980.0,117970.0,0.68639026]
[1752854412130,0.44976375,117980.0,117970.0,0.71884293]
[1752854412341,0.44976375,117980.0,117970.0,0.70189026]
[1752854412650,0.18648771,117970.0,117960.0,0.54144899]
[1752854412883,0.19158771,117970.0,117960.0,0.54144899]
[1752854413117,0.19498025,117960.0,117950.0,1.03739321]
[1752854413348,0.32485352,117960.0,117950.0,0.17809132]
[1752854413574,0.32788352,117960.0,117950.0,0.18656941]
[1752854413802,0.01357694,117960.0,117950.0,0.7190275]
[1752854414023,0.13927,117960.0,117950.0,0.7190275]
[1752854414253,0.19799408,117970.0,117950.0,0.7200275]
[1752854414481,0.14471687,117960.0,117950.0,0.22814622]
[1752854414704,0.32784338,117960.0,117950.0,0.03514979]
[1752854415198,0.31936629,117960.0,117950.0,0.00304979]
[1752854415443,0.31936629,117960.0,117950.0,0.01152795]
[1752854415691,0.31936586,117960.0,117950.0,0.71274991]
[1752854415928,0.15081687,117960.0,117950.0,0.72970545]
[1752854416355,0.15081694,117960.0,117950.0,0.72970545]
[1752854416562,0.15929403,117960.0,117950.0,0.72970545]
[1752854416780,0.33732018,117960.0,117950.0,0.72870559]
[1752854416991,0.34579762,117960.0,117950.0,0.73070559]
[1752854417195,0.15929403,117960.0,117950.0,0.73070545]
[1752854417561,0.33732032,117960.0,117950.0,0.72870552]
[1752854417768,0.33732032,117960.0,117950.0,0.72222736]
[1752854418121,0.15929403,117960.0,117950.0,0.73070502]
[1752854418420,0.34579755,117960.0,117950.0,0.72222743]
[1752854418570,0.34579755,117960.0,117950.0,0.73070516]
[1752854418764,0.17624849,117960.0,117950.0,0.73070473]
[1752854418973,0.15081694,117960.0,117950.0,0.73070473]
[1752854419211,0.15081694,117960.0,117950.0,0.7137492]
[1752854419403,0.15081687,117960.0,117950.0,0.7137492]
[1752854419808,0.1508568,117960.0,117950.0,0.7137492]
[1752854420011,0.32888273,117960.0,117950.0,0.23034665]
[1752854420212,0.33735982,117960.0,117950.0,0.72222707]
[1752854420412,0.15933374,117960.0,117950.0,0.73070473]
[1752854420621,0.16781075,117960.0,117950.0,0.73070473]
[1752854420850,0.17628784,117960.0,117950.0,0.73070473]